bitfinex/quotes_BTCUSD_20251116
["timestamp","ask_amount","ask_price","bid_price","bid_amount"]
[1763331943943,0.0198303,93944.0,93943.0,0.14620109]
[1763331944296,0.1198303,93944.0,93943.0,0.14620109]
[1763331945216,0.2053903,93944.0,93943.0,0.14620109]
[1763331945416,0.3765103,93944.0,93943.0,0.14620109]
[1763331946278,0.3765103,93944.0,93943.0,0.22267467]
[1763331946519,0.2909503,93944.0,93943.0,0.22267467]
[1763331947515,0.2909503,93944.0,93943.0,0.14620109]
[1763331947718,0.2053903,93944.0,93943.0,0.07682536]
[1763331947925,0.2053903,93944.0,93943.0,0.04341874]
[1763331948889,0.1198303,93944.0,93943.0,0.1202441]
[1763331949095,0.1198303,93944.0,93941.0,0.04341874]
[1763331949428,0.0198303,93943.0,93942.0,0.13879613]
[1763331949588,4.472e-05,93952.0,93943.0,0.04341874]
[1763331949803,4.472e-05,93952.0,93946.0,0.04341874]
[1763331951261,4.472e-05,93952.0,93949.0,0.07680826]
[1763331951464,4.472e-05,93952.0,93950.0,0.07680826]
[1763331951665,4.472e-05,93952.0,93951.0,0.00768083]
[1763331951884,0.10004472,93952.0,93942.0,0.85796094]
[1763331952086,1.160993,93952.0,93942.0,0.78115268]
[1763331953496,0.01675514,93950.0,93942.0,0.78115268]
[1763331954260,0.11675514,93950.0,93942.0,0.78115268]
[1763331954494,0.11675514,93950.0,93943.0,0.08144927]
[1763331955301,0.17112,93944.0,93943.0,0.08144927]
[1763331955718,0.17112,93944.0,93939.0,0.04341874]
[1763331956558,0.17112,93944.0,93942.0,0.1]
[1763331956782,0.08556,93944.0,93943.0,0.04341874]
[1763331956993,0.18556,93944.0,93943.0,0.04341874]
[1763331957161,0.01675514,93950.0,93943.0,0.13942442]
[1763331957377,0.01675514,93950.0,93948.0,0.04341874]
[1763331957830,0.01675514,93950.0,93948.0,0.13942442]
[1763331958019,0.01675514,93950.0,93945.0,0.04341874]
[1763331959437,0.01675514,93950.0,93948.0,0.02143]
[1763331959642,4.472e-05,93952.0,93948.0,0.02143]
[1763331959815,4.472e-05,93952.0,93950.0,0.04341874]
[1763331960367,0.1,93951.0,93950.0,0.04341874]
[1763331961670,0.11998132,93951.0,93950.0,0.04341874]
[1763331962472,0.11998132,93951.0,93950.0,0.06484874]
[1763331962678,0.11998132,93951.0,93950.0,0.04341874]
[1763331962679,0.01998132,93951.0,93950.0,0.04341874]
[1763331962884,0.03673207,93951.0,93950.0,0.06583025]
[1763331963481,0.03673207,93951.0,93950.0,0.04341874]
[1763331963767,0.03773207,93951.0,93950.0,0.17754874]
[1763331964374,0.03773207,93951.0,93950.0,0.04341874]
[1763331964875,0.03673207,93951.0,93950.0,0.04341874]
[1763331965384,0.29341207,93951.0,93950.0,0.04341874]
[1763331965531,0.29341207,93951.0,93950.0,0.05240951]
[1763331965714,0.29341207,93951.0,93950.0,0.05340951]
[1763331966128,0.20785207,93951.0,93950.0,0.05340951]
[1763331966374,0.12229207,93951.0,93950.0,0.05340951]
[1763331968839,0.03673207,93951.0,93950.0,0.05340951]
[1763331969070,0.03673207,93951.0,93950.0,0.05240951]
[1763331969303,0.03673207,93951.0,93950.0,0.05340951]
[1763331969539,0.0002,93980.0,93950.0,0.05340951]
[1763331969743,0.0002,93980.0,93977.0,0.04341874]
[1763331970102,0.0002,93980.0,93977.0,0.1200793]
[1763331970103,0.1002,93980.0,93977.0,0.1200793]
[1763331970307,0.11694632,93980.0,93977.0,0.04341874]
[1763331971073,0.11894632,93980.0,93977.0,0.03722874]
[1763331971451,0.11694632,93980.0,93975.0,0.07666056]
[1763331971655,0.11894632,93980.0,93976.0,0.08578132]
[1763331972242,0.11694632,93980.0,93976.0,0.08578132]
[1763331972476,0.11894632,93980.0,93976.0,0.08578132]
[1763331972858,0.11894632,93980.0,93979.0,0.07666056]
[1763331973094,0.11894632,93980.0,93979.0,0.1200793]
[1763331973390,0.1022,93980.0,93979.0,0.0640048]
[1763331973797,0.1002,93980.0,93979.0,0.0640048]
[1763331973944,0.1022,93980.0,93979.0,0.0640048]
[1763331974342,0.1002,93980.0,93979.0,0.0640048]
[1763331974797,0.1022,93980.0,93979.0,0.04341874]
[1763331975344,0.0002,94010.0,93979.0,0.04341874]
[1763331975546,0.0002,94010.0,93993.0,0.07663028]
[1763331975751,0.00033426,94000.0,93993.0,0.0958257]
[1763331975958,0.00033426,94000.0,93995.0,0.0958257]
[1763331976148,0.00033426,94000.0,93999.0,0.04341874]
[1763331976351,0.00033426,94000.0,93996.0,0.04341874]
[1763331976560,0.01805798,94000.0,93998.0,0.04341874]
[1763331976679,0.11707633,94000.0,93998.0,0.04341874]
[1763331976893,0.00095362,93999.0,93998.0,0.04341874]
[1763331977100,0.00095362,93999.0,93998.0,0.04241874]
[1763331977687,0.10095362,93999.0,93998.0,0.04241874]
[1763331977896,0.10095362,93999.0,93998.0,0.06333016]
[1763331978699,0.10295362,93999.0,93998.0,0.06333016]
[1763331978863,0.10395362,93999.0,93998.0,0.06333016]
[1763331981565,0.12387348,93999.0,93998.0,0.06333016]
[1763331983711,0.12387348,93999.0,93990.0,0.07658025]
[1763331983991,0.12387348,93999.0,93983.0,0.07658025]
[1763331983992,0.01991986,93998.0,93983.0,0.07658025]
[1763331984268,0.01991986,93997.0,93989.0,0.78115268]
[1763331984502,0.01991986,93996.0,93989.0,0.85926795]
[1763331984726,0.01991986,93995.0,93989.0,0.85926795]
[1763331984947,0.01991986,93994.0,93989.0,0.07811527]
[1763331985208,0.01991986,93993.0,93989.0,0.07811527]
[1763331985383,0.17104,93990.0,93989.0,0.07811527]
[1763331985609,0.19095986,93990.0,93989.0,0.07811527]
[1763331986040,0.29095986,93990.0,93987.0,0.07658025]
[1763331986245,0.01991986,93989.0,93988.0,0.07658025]
[1763331986472,0.01991986,93989.0,93988.0,0.06374626]
[1763331986863,0.13666382,93989.0,93988.0,0.06374626]
[1763331987039,0.11991986,93989.0,93988.0,0.06374626]
[1763331987453,0.11991986,93989.0,93981.0,0.04341874]
[1763331987647,0.01991986,93988.0,93980.0,0.53253446]
[1763331987850,0.01991986,93987.0,93980.0,0.53253446]
[1763331988051,0.01991986,93986.0,93977.0,0.53253446]
[1763331988261,0.01991986,93985.0,93977.0,0.53253446]
[1763331988448,0.01991986,93984.0,93977.0,0.53253446]
[1763331988644,0.01991986,93983.0,93977.0,0.58578791]
[1763331988895,0.01991986,93982.0,93977.0,0.58578791]
[1763331989045,0.01991986,93981.0,93977.0,0.58578791]
[1763331989229,0.01991986,93980.0,93977.0,0.58578791]
[1763331989439,0.01991986,93979.0,93977.0,0.05325345]
[1763331989639,1.06094828,93983.0,93978.0,0.00532535]
[1763331989877,0.01997776,93982.0,93978.0,0.00532535]
[1763331990052,0.1,93979.0,93978.0,0.00532535]
[1763331990281,0.11997776,93979.0,93978.0,0.00532535]
[1763331990988,0.11997776,93979.0,93978.0,0.04874409]
[1763331991195,0.12197776,93979.0,93978.0,0.04874409]
[1763331991399,0.01674584,93982.0,93979.0,0.04341874]
[1763331991607,1.05182002,94006.0,93981.0,0.04341874]
[1763331991858,1.05182002,94006.0,93991.0,0.04341874]
[1763331992127,0.10033426,94000.0,93991.0,0.04341874]
[1763331992711,0.10033426,94000.0,93991.0,0.04241874]
[1763331993560,0.10133426,94000.0,93991.0,0.04241874]
[1763331993707,0.10133426,94000.0,93992.0,0.05749532]
[1763331994051,0.10033426,94000.0,93992.0,0.05749532]
[1763331994304,0.10133426,94000.0,93992.0,0.05749532]
[1763331994753,0.10133426,94000.0,93993.0,0.04341874]
[1763331995015,0.01674322,93999.0,93993.0,0.04341874]
[1763331995227,0.01674322,93999.0,93991.0,0.04341874]
[1763331995228,0.00081342,93994.0,93991.0,0.04341874]
[1763331995366,0.17104,93994.0,93991.0,0.04341874]
[1763331995776,0.17104,93994.0,93985.0,0.04341874]
[1763331995975,0.27104,93994.0,93985.0,0.04341874]
[1763331996175,0.18552,93994.0,93985.0,0.04341874]
[1763331996382,0.18552,93994.0,93989.0,0.04341874]
[1763331996556,0.18552,93994.0,93989.0,0.12012545]
[1763331996965,0.18652,93994.0,93989.0,0.12012545]
[1763331997188,0.18652,93994.0,93989.0,0.04341874]
[1763331997396,0.18652,93994.0,93989.0,0.12012545]
[1763331997710,0.18652,93994.0,93991.0,0.04341874]
[1763331998163,0.101,93994.0,93986.0,0.07670671]
[1763331998372,1.15182002,93994.0,93984.0,0.53253446]
[1763331998586,2.2127683,93994.0,93984.0,0.53253446]
[1763331998759,2.2137683,93994.0,93984.0,0.53253446]
[1763331999195,2.2127683,93994.0,93984.0,0.53253446]
[1763331999610,2.2137683,93994.0,93984.0,0.53253446]
[1763331999934,2.2127683,93994.0,93984.0,0.53253446]
[1763332000268,2.2147683,93994.0,93984.0,0.53253446]
[1763332000447,2.2157683,93994.0,93984.0,0.53253446]
[1763332000655,0.00075734,93992.0,93984.0,0.53253446]
[1763332000855,2.2157683,93994.0,93984.0,0.53253446]
[1763332001488,0.1,93992.0,93984.0,0.51969756]
[1763332001871,0.102,93992.0,93984.0,0.51969756]
[1763332003384,0.01997368,93991.0,93984.0,0.51969756]
[1763332003590,0.01997368,93990.0,93984.0,0.51969756]
[1763332003790,0.01997368,93989.0,93970.0,0.07670671]
[1763332003965,0.01997368,93988.0,93980.0,0.53253446]
[1763332004167,0.01997368,93987.0,93980.0,0.53253446]
[1763332004370,0.0199715,93986.0,93980.0,0.53253446]
[1763332004565,0.0199715,93985.0,93980.0,0.53253446]
[1763332004794,0.0199715,93984.0,93980.0,0.53253446]
[1763332004990,0.0199715,93983.0,93980.0,0.53253446]
[1763332005362,0.17104,93981.0,93980.0,0.53253446]
[1763332005545,0.1910115,93981.0,93980.0,0.53253446]
[1763332005793,0.1910115,93981.0,93971.0,0.53253446]
[1763332005979,0.0199715,93980.0,93971.0,0.53253446]
[1763332006182,0.0199715,93979.0,93971.0,0.53253446]
[1763332006420,0.0199715,93978.0,93971.0,0.53253446]
[1763332006650,0.0199715,93977.0,93971.0,0.56422399]
[1763332006857,0.27104,93981.0,93971.0,0.56422399]
[1763332006858,0.0199715,93976.0,93971.0,0.56422399]
[1763332007004,0.0199715,93975.0,93971.0,0.56422399]
[1763332007206,0.0199715,93974.0,93971.0,0.53253446]
[1763332007407,0.0199715,93973.0,93961.0,0.12012545]
[1763332007611,0.0199715,93972.0,93961.0,0.12012545]
[1763332007814,0.0199715,93971.0,93961.0,0.12012545]
[1763332008023,0.0199715,93970.0,93961.0,0.07670671]
[1763332008246,0.0199715,93969.0,93958.0,0.07670671]
[1763332008461,0.0199715,93968.0,93960.0,0.53253446]
[1763332008658,0.03671974,93967.0,93960.0,0.53253446]
[1763332008859,0.0199715,93966.0,93960.0,0.53253446]
[1763332009063,0.0199715,93965.0,93960.0,0.53253446]
[1763332009283,0.0199715,93964.0,93960.0,0.53253446]
[1763332009510,0.0199715,93963.0,93960.0,0.53253446]
[1763332009714,0.0199715,93962.0,93960.0,0.53253446]
[1763332009923,0.0199715,93961.0,93960.0,0.53253446]
[1763332010323,0.0199715,93961.0,93955.0,0.07670671]
[1763332010523,0.0199715,93960.0,93951.0,0.53253446]
[1763332010800,0.0199715,93959.0,93951.0,0.53253446]
[1763332011014,0.0199715,93958.0,93951.0,0.53253446]
[1763332011225,0.0199715,93957.0,93951.0,0.53253446]
[1763332011461,0.0199715,93956.0,93951.0,0.53253446]
[1763332011652,0.0199715,93955.0,93951.0,0.53253446]
[1763332011868,0.0199715,93954.0,93951.0,0.53253446]
[1763332012098,0.0199715,93953.0,93945.0,0.53253446]
[1763332012304,0.0199715,93952.0,93945.0,0.53257918]
[1763332012515,0.0199715,93951.0,93945.0,0.53257918]
[1763332012726,0.0199715,93950.0,93945.0,0.53257918]
[1763332012928,0.0199715,93949.0,93945.0,0.53257918]
[1763332013148,0.0199715,93948.0,93945.0,0.53257918]
[1763332013358,0.0199715,93947.0,93945.0,0.53257918]
[1763332013561,0.0199715,93946.0,93945.0,0.53257918]
[1763332014388,0.1199715,93946.0,93945.0,4.472e-05]
[1763332014814,0.1209715,93946.0,93945.0,4.472e-05]
[1763332015541,0.3776515,93946.0,93945.0,4.472e-05]
[1763332016465,0.3776515,93946.0,93945.0,0.01771986]
[1763332016615,0.1209715,93946.0,93945.0,0.0611386]
[1763332017453,0.1199715,93946.0,93945.0,0.0611386]
[1763332017760,0.1209715,93946.0,93945.0,0.0611386]
[1763332018909,0.13772028,93946.0,93945.0,0.0611386]
[1763332019311,0.1209715,93946.0,93945.0,0.0611386]
[1763332020477,0.11538107,93946.0,93945.0,0.1738386]
[1763332020672,0.001,93946.0,93945.0,0.1738386]
[1763332020875,0.0002,94000.0,93945.0,0.1738386]
[1763332020876,0.0002,94000.0,93967.0,0.04341874]
[1763332021096,0.0002,94000.0,93972.0,0.15611874]
[1763332021682,0.0002,94000.0,93972.0,0.17754874]
[1763332022167,0.0002,94000.0,93968.0,0.01995375]
[1763332022168,0.0002,94000.0,93995.0,0.04341874]
[1763332022346,0.0002,94000.0,93999.0,0.15611874]
[1763332022856,0.01693806,94000.0,93999.0,0.15611874]
[1763332023157,0.01693806,94000.0,93999.0,0.18509732]
[1763332023393,0.01707235,94000.0,93999.0,0.18509732]
[1763332024368,0.01707235,94000.0,93999.0,0.07239732]
[1763332024541,0.01707235,94000.0,93992.0,0.04341874]
[1763332025103,0.01707235,94000.0,93991.0,0.04341874]
[1763332025248,0.01707235,94000.0,93999.0,0.1386963]
[1763332025446,0.27363235,94000.0,93999.0,0.1386963]
[1763332026094,0.18811235,94000.0,93999.0,0.1386963]
[1763332026439,0.18811235,94000.0,93999.0,0.05728837]
[1763332028607,0.10259235,94000.0,93999.0,0.05666331]
[1763332028807,0.01782957,94000.0,93999.0,0.05666331]
[1763332031491,0.01782957,94000.0,93999.0,0.13265259]
[1763332031927,0.01782957,94000.0,93999.0,0.05666331]
[1763332032063,0.01782957,94000.0,93999.0,0.04279368]
[1763332032779,0.03762884,94000.0,93999.0,0.04279368]
[1763332033211,0.02089078,94000.0,93999.0,0.04279368]
[1763332034174,0.02089078,94000.0,93999.0,0.03970368]
[1763332034612,0.12089078,94000.0,93999.0,0.03970368]
[1763332034822,0.12089078,94000.0,93999.0,0.05127007]
[1763332035246,0.02089078,94000.0,93999.0,0.05127007]
[1763332035497,0.27745078,94000.0,93999.0,0.05127007]
[1763332036526,0.29418888,94000.0,93999.0,0.05127007]
[1763332038161,0.12314888,94000.0,93999.0,0.05127007]
[1763332038371,0.03762888,94000.0,93999.0,0.05127007]
[1763332038571,0.03762888,94000.0,93999.0,0.03970368]
[1763332041722,0.03762888,94000.0,93999.0,0.04070368]
[1763332042387,0.03762888,94000.0,93999.0,0.11666389]
[1763332042964,0.03762888,94000.0,93999.0,0.04070368]
[1763332043912,0.03762888,94000.0,93999.0,0.18980368]
[1763332044122,0.03765943,94000.0,93999.0,0.2183118]
[1763332044325,0.01365943,94000.0,93999.0,0.1819118]
[1763332044554,1.06094828,94068.0,93999.0,0.1819118]
[1763332044555,0.01721437,94089.0,94020.0,0.00999999]
[1763332044743,0.00064764,94060.0,94057.0,0.06484874]
[1763332045029,0.00064764,94060.0,94059.0,0.06484874]
[1763332045479,0.25708764,94060.0,94059.0,0.06484874]
[1763332045681,0.00064764,94060.0,94059.0,0.06484874]
[1763332046745,0.00064764,94060.0,94059.0,0.17754874]
[1763332046965,0.00064764,94060.0,94059.0,0.17854874]
[1763332047239,0.00064764,94060.0,94059.0,0.19640361]
[1763332047472,0.00064764,94060.0,94059.0,0.19540361]
[1763332047689,0.00064764,94060.0,94059.0,0.17497361]
[1763332048100,0.00064764,94060.0,94059.0,0.17697361]
[1763332048326,0.00064764,94060.0,94059.0,0.19740361]
[1763332048528,0.00064764,94060.0,94059.0,0.19540361]
[1763332048702,0.00064764,94060.0,94059.0,0.33113568]
[1763332048927,0.01737422,94060.0,94059.0,0.33113568]
[1763332049089,0.01737422,94060.0,94059.0,0.19840361]
[1763332049291,0.01737422,94060.0,94059.0,0.08570361]
[1763332049490,0.01737422,94060.0,94059.0,0.06427361]
[1763332049937,0.01737422,94060.0,94059.0,0.13492814]
[1763332050218,0.01737422,94060.0,94059.0,0.004]
[1763332050531,0.01737422,94060.0,94059.0,0.09894069]
[1763332050732,0.01737422,94060.0,94059.0,0.002]
[1763332050876,0.11737422,94060.0,94059.0,0.002]
[1763332051083,0.11737422,94060.0,94059.0,0.00879743]
[1763332051280,0.11737422,94060.0,94059.0,0.01079743]
[1763332051485,0.11737422,94060.0,94059.0,0.00979743]
[1763332051686,0.11737422,94060.0,94059.0,0.00779743]
[1763332051883,0.01737422,94060.0,94059.0,0.00879743]
[1763332052772,0.01737422,94060.0,94059.0,0.05221617]
[1763332052972,0.11737422,94060.0,94059.0,0.00879743]
[1763332053179,0.11737422,94060.0,94059.0,0.001]
[1763332053381,0.11737422,94060.0,94050.0,0.7788345]
[1763332053641,0.01737422,94060.0,94050.0,0.7788345]
[1763332054327,0.1,94057.0,94050.0,0.7788345]
[1763332054467,1.16094828,94057.0,94050.0,0.7788345]
[1763332054815,1.16094828,94057.0,94050.0,0.7798345]
[1763332055018,1.16094828,94057.0,94050.0,0.81437046]
[1763332055359,0.08544,94051.0,94050.0,0.7788345]
[1763332055604,0.08544,94051.0,94041.0,0.7788345]
[1763332055805,0.08686931,94051.0,94041.0,0.7788345]
[1763332055982,1.06094828,94057.0,94041.0,0.7788345]
[1763332056331,0.1,94047.0,94041.0,0.7788345]
[1763332056522,0.01984147,94046.0,94037.0,0.7788345]
[1763332056722,1.15182002,94047.0,94037.0,0.7788345]
[1763332056723,0.01984147,94045.0,94037.0,0.7788345]
[1763332056929,1.15182002,94047.0,94037.0,0.85671795]
[1763332056930,0.01984147,94044.0,94037.0,0.85671795]
[1763332057245,0.01984147,94043.0,94037.0,0.85671795]
[1763332057444,0.01984147,94042.0,94037.0,0.85671795]
[1763332057643,0.01984147,94041.0,94037.0,0.85671795]
[1763332057800,0.01984147,94040.0,94037.0,0.85671795]
[1763332058001,0.01984147,94039.0,94038.0,0.0856718]
[1763332058204,0.01984147,94039.0,94030.0,0.7788345]
[1763332058406,0.01984147,94038.0,94031.0,0.04341874]
[1763332058628,0.01984147,94037.0,94031.0,0.04341874]
[1763332058784,0.01984147,94036.0,94029.0,0.04341874]
[1763332058989,0.01984147,94035.0,94029.0,0.04341874]
[1763332059239,0.01984147,94034.0,94031.0,0.04341874]
[1763332059449,0.01984147,94033.0,94031.0,0.04341874]
[1763332059648,0.01984147,94032.0,94031.0,0.04341874]
[1763332059858,0.01984147,94059.0,94031.0,0.04341874]
[1763332060068,0.1,94050.0,94049.0,0.7788345]
[1763332060280,0.1,94050.0,94041.0,0.04341874]
[1763332060281,0.11984147,94050.0,94041.0,0.04341874]
[1763332060481,0.01963356,94049.0,94041.0,0.04292434]
[1763332060645,1.06094828,94056.0,94039.0,0.7788345]
[1763332060813,1.06094828,94056.0,94031.0,0.07697431]
[1763332060814,1.06094828,94056.0,94046.0,0.7788345]
[1763332061014,0.00064764,94060.0,94046.0,0.7788345]
[1763332061243,0.1,94050.0,94046.0,0.7788345]
[1763332061645,0.00131726,94047.0,94046.0,0.7788345]
[1763332061946,0.00131726,94047.0,94046.0,0.08696078]
[1763332062141,0.00131726,94047.0,94041.0,0.001]
[1763332062351,0.016733,94047.0,94041.0,0.001]
[1763332062558,0.00117718,94042.0,94038.0,0.04341874]
[1763332062755,0.016733,94047.0,94038.0,0.04341874]
[1763332063366,0.016733,94047.0,94041.0,0.001]
[1763332063573,0.016733,94047.0,94042.0,0.08065202]
[1763332065199,0.08544,94046.0,94042.0,0.08065202]
[1763332065461,0.17088,94043.0,94042.0,0.08065202]
[1763332065825,0.08544,94043.0,94042.0,0.12407076]
[1763332066027,0.016733,94047.0,94043.0,0.04341874]
[1763332066206,0.016733,94047.0,94045.0,0.04341874]
[1763332066385,0.016733,94047.0,94046.0,0.02143]
[1763332066787,0.00064764,94060.0,94046.0,0.02143]
[1763332067041,0.00064764,94060.0,94052.0,0.02143]
[1763332067218,0.00064764,94060.0,94052.0,0.09752793]
[1763332067423,0.00064764,94060.0,94054.0,0.02143]
[1763332068284,0.00064764,94060.0,94054.0,0.09752793]
[1763332068581,0.00064764,94060.0,94059.0,0.04341874]
[1763332068789,0.00064764,94060.0,94059.0,0.15611874]
[1763332069001,0.00232903,94060.0,94059.0,0.15611874]
[1763332069197,0.00232903,94060.0,94059.0,0.18049424]
[1763332069434,0.01721437,94105.0,94059.0,0.18049424]
[1763332069435,0.01721437,94105.0,94061.0,0.04341874]
[1763332069624,0.00033423,94070.0,94061.0,0.04341874]
[1763332069946,0.00033423,94070.0,94066.0,0.04341874]
[1763332070153,0.01672611,94068.0,94066.0,0.02669263]
[1763332070358,0.01672611,94068.0,94067.0,0.07623045]
[1763332071274,0.01672611,94068.0,94065.0,0.13292814]
[1763332071505,0.01672611,94068.0,94060.0,0.00999999]
[1763332071707,0.01672611,94068.0,94061.0,0.002]
[1763332072079,0.01672611,94068.0,94062.0,0.04341874]
[1763332072522,0.0198658,94067.0,94066.0,0.04341874]
[1763332072778,0.0198658,94067.0,94066.0,0.06893285]
[1763332073193,0.0198658,94067.0,94066.0,0.18534498]
[1763332073607,0.0198658,94067.0,94066.0,0.05220691]
[1763332073822,0.0198658,94067.0,94062.0,0.001]
[1763332074038,0.01672611,94068.0,94066.0,0.13616112]
[1763332074241,0.01986726,94067.0,94066.0,0.13316112]
[1763332074445,0.01986726,94067.0,94065.0,0.13316112]
[1763332074652,0.01672611,94068.0,94066.0,0.002]
[1763332074864,0.01672611,94068.0,94067.0,0.01461611]
[1763332075068,0.03659765,94068.0,94067.0,0.01461611]
[1763332075282,0.12203765,94068.0,94067.0,0.05803485]
[1763332075481,0.29291765,94068.0,94067.0,0.05803485]
[1763332075903,0.12203765,94068.0,94067.0,0.05803485]
[1763332076116,0.00033423,94070.0,94068.0,0.04341874]
[1763332076335,0.00033423,94070.0,94069.0,0.06728021]
[1763332076544,0.00033423,94070.0,94069.0,0.20044133]
[1763332076750,0.01705845,94070.0,94069.0,0.18371712]
[1763332076955,0.01705845,94070.0,94069.0,0.050556]
[1763332078404,0.01705845,94070.0,94069.0,0.052556]
[1763332078836,0.01705845,94070.0,94069.0,0.050556]
[1763332079056,0.01705845,94070.0,94069.0,0.052556]
[1763332079256,0.01721437,94105.0,94069.0,0.052556]
[1763332079461,0.01734848,94105.0,94095.0,0.7788345]
[1763332079662,0.17088,94096.0,94095.0,0.76211192]
[1763332079865,0.17088,94096.0,94091.0,0.07600901]
[1763332080480,0.17088,94096.0,94092.0,0.11942775]
[1763332080680,0.17088,94096.0,94094.0,0.07600901]
[1763332080914,0.08544,94096.0,94095.0,0.05201964]
[1763332081136,0.17088,94096.0,94095.0,0.16471964]
[1763332081578,0.08544,94096.0,94095.0,0.16471964]
[1763332081794,0.08544,94096.0,94095.0,0.05201964]
[1763332082891,0.25624,94096.0,94095.0,0.002]
[1763332083300,0.25624,94096.0,94095.0,0.04541874]
[1763332083509,0.2562,94096.0,94095.0,0.02869877]
[1763332083735,0.1708,94096.0,94095.0,0.03069877]
[1763332083946,0.2562,94096.0,94095.0,0.03069877]
[1763332084149,0.2562,94096.0,94095.0,0.02869877]
[1763332084355,0.2562,94096.0,94086.0,0.87356915]
[1763332084356,0.2562,94096.0,94094.0,0.07577716]
[1763332084565,0.2562,94096.0,94080.0,0.79883448]
[1763332084566,0.2562,94096.0,94089.0,0.07577716]
[1763332084767,0.2562,94096.0,94095.0,0.001]
[1763332085217,0.25670401,94096.0,94080.0,0.7788345]
[1763332085432,0.2562,94096.0,94080.0,0.7788345]
[1763332085632,0.2562,94096.0,94095.0,0.002]
[1763332085846,0.0854,94096.0,94094.0,0.001]
[1763332086054,0.0854,94096.0,94095.0,0.001]
[1763332086462,0.0854,94096.0,94078.0,0.07577716]
[1763332086635,0.00013411,94105.0,94086.0,0.7788345]
[1763332086838,0.01721437,94101.0,94095.0,0.7788345]
[1763332087203,0.01721437,94101.0,94095.0,0.7798345]
[1763332087463,0.1,94097.0,94095.0,0.7798345]
[1763332087672,0.1,94097.0,94096.0,0.07798345]
[1763332087874,0.1,94097.0,94095.0,0.001]
[1763332087875,0.00013411,94105.0,94095.0,0.002]
[1763332088100,0.01983396,94104.0,94095.0,0.002]
[1763332088301,0.01983396,94103.0,94095.0,0.001]
[1763332088512,0.01983396,94102.0,94094.0,0.7788345]
[1763332088740,0.01983396,94101.0,94094.0,0.7788345]
[1763332088939,0.01983396,94100.0,94095.0,0.07788345]
[1763332089162,0.01983396,94099.0,94095.0,0.07788345]
[1763332089370,0.01983396,94098.0,94095.0,0.07888345]
[1763332089579,0.01983396,94098.0,94094.0,0.7788345]
[1763332089580,0.01983396,94097.0,94096.0,0.1072018]
[1763332089963,0.01983396,94104.0,94095.0,0.07577716]
[1763332090175,0.01983396,94103.0,94095.0,0.07577716]
[1763332090387,0.00013411,94105.0,94096.0,0.07577716]
[1763332090388,0.01983396,94102.0,94096.0,0.07577716]
[1763332090586,0.01983396,94101.0,94100.0,0.07577716]
[1763332091122,0.01983396,94104.0,94096.0,0.02143]
[1763332091315,0.01983396,94104.0,94103.0,0.07596061]
[1763332091497,0.01983396,94104.0,94098.0,0.02143]
[1763332092249,0.01983396,94104.0,94100.0,0.02243]
[1763332092453,0.01983396,94104.0,94100.0,0.11616465]
[1763332092635,0.0002,94170.0,94147.0,0.7788345]
[1763332092899,0.0006472,94170.0,94148.0,0.07788345]
[1763332093108,1.06159548,94170.0,94148.0,0.07788345]
[1763332093308,1.16159548,94170.0,94148.0,0.07788345]
[1763332095269,0.1708,94149.0,94118.0,0.07594734]
[1763332095469,0.04341874,94169.0,94140.0,0.7788345]
[1763332095681,0.04341874,94169.0,94130.0,0.7788345]
[1763332095891,0.04341874,94169.0,94105.0,0.07594734]
[1763332096095,0.04341874,94169.0,94140.0,0.7788345]
[1763332096301,0.14341874,94169.0,94141.0,0.07788345]
[1763332096534,0.1,94169.0,94150.0,0.7788345]
[1763332096734,0.101,94169.0,94150.0,0.7788345]
[1763332097502,0.101,94169.0,94159.0,0.7788345]
[1763332097711,0.101,94169.0,94150.0,0.7788345]
[1763332097905,0.101,94169.0,94151.0,0.07788345]
[1763332098305,0.101,94169.0,94140.0,0.7788345]
[1763332098686,0.1,94169.0,94150.0,0.7788345]
[1763332098994,0.101,94169.0,94150.0,0.7788345]
[1763332099195,0.1,94169.0,94150.0,0.7788345]
[1763332099599,0.101,94169.0,94150.0,0.7788345]
[1763332099836,0.1,94169.0,94151.0,0.07788345]
[1763332099972,0.1,94153.0,94151.0,0.07788345]
[1763332100603,0.1,94153.0,94143.0,0.7788345]
[1763332103067,0.1,94153.0,94139.0,0.07594734]
[1763332103284,0.1,94153.0,94134.0,0.07594734]
[1763332103931,0.1,94153.0,94133.0,0.07594734]
[1763332104141,0.1,94153.0,94140.0,0.7788345]
[1763332104349,0.1,94145.0,94141.0,0.08547818]
[1763332104668,0.01990346,94144.0,94141.0,0.08547818]
[1763332104883,0.01990346,94143.0,94134.0,0.07594734]
[1763332105093,0.01990346,94142.0,94134.0,0.07594734]
[1763332105310,0.10530346,94141.0,94134.0,0.07594734]
[1763332105539,0.1708,94135.0,94130.0,0.7788345]
[1763332105751,0.01990346,94134.0,94130.0,0.7788345]
[1763332105976,0.01990346,94134.0,94131.0,0.08737753]
[1763332106180,0.01990346,94133.0,94131.0,0.08737753]
[1763332106411,0.01990346,94132.0,94131.0,0.08737753]
[1763332106626,0.02003754,94132.0,94125.0,0.09494082]
[1763332106838,0.01990346,94131.0,94125.0,0.09494082]
[1763332107535,0.01990346,94131.0,94127.0,0.04341874]
[1763332107972,0.00013408,94132.0,94130.0,0.09494082]
[1763332108171,1.06094828,94167.0,94131.0,0.10977678]
[1763332108375,0.1,94147.0,94143.0,0.07601976]
[1763332108590,0.01990728,94146.0,94142.0,0.07601976]
[1763332108823,0.01990728,94145.0,94144.0,0.07601976]
[1763332109904,0.01990728,94145.0,94140.0,0.54072925]
[1763332110113,0.00044684,94167.0,94141.0,0.06356701]
[1763332110114,0.01990728,94144.0,94141.0,0.06356701]
[1763332110338,0.01990728,94143.0,94142.0,0.04341874]
[1763332110542,0.00044684,94167.0,94150.0,0.00999999]
[1763332110752,0.00044684,94167.0,94163.0,0.07598085]
[1763332110969,0.00044684,94167.0,94157.0,0.53072926]
[1763332110970,0.00044684,94167.0,94164.0,0.13665186]
[1763332111180,0.00044684,94167.0,94164.0,0.06067101]
[1763332111410,0.00044684,94167.0,94165.0,0.07593702]
[1763332111873,0.00044684,94167.0,94164.0,0.06067101]
[1763332112089,0.00044684,94167.0,94150.0,0.00999999]
[1763332112090,0.00044684,94167.0,94163.0,0.07692659]
[1763332112295,0.00044684,94167.0,94163.0,0.07592659]
[1763332112510,0.00044684,94167.0,94164.0,0.001]
[1763332112735,0.00044684,94167.0,94164.0,0.07592659]
[1763332112963,0.00044684,94167.0,94165.0,0.04341874]
[1763332113173,0.00044684,94167.0,94166.0,0.05635327]
[1763332113385,0.00044684,94167.0,94166.0,0.13220311]
[1763332113587,0.00044684,94167.0,94166.0,0.05635327]
[1763332114633,0.00044684,94167.0,94166.0,0.04341874]
[1763332114845,0.00044684,94167.0,94160.0,0.00999999]
[1763332115051,0.00044684,94167.0,94160.0,0.07582315]
[1763332115274,0.00044684,94167.0,94166.0,0.002]
[1763332115493,0.17116684,94167.0,94166.0,0.002]